bitfinex-derivatives/quotes_ETHF0:USTF0_20240920
["timestamp","ask_amount","ask_price","bid_price","bid_amount"]
[1726810864540,0.831,2547.0,2546.5,3.2078]
[1726810864726,0.831,2547.0,2546.5,3.60046]
[1726810864727,3.06,2546.8,2546.5,3.60046]
[1726810864928,3.06,2546.8,2546.5,3.60047]
[1726810865434,3.06,2546.8,2546.5,3.2078]
[1726810865632,1.2236,2547.0,2546.5,3.2078]
[1726810865633,3.06,2546.6,2546.5,3.2078]
[1726810866527,3.06,2546.6,2546.3,0.3927]
[1726810866730,3.06,2546.4,2546.2,3.2078]
[1726810867036,3.06,2546.4,2546.1,1.24283]
[1726810868727,0.8608,2546.5,2545.8,3.6095]
[1726810868728,3.06,2546.2,2545.8,3.60057]
[1726810869535,3.06,2546.2,2545.8,3.2078]
[1726810870034,3.06,2546.0,2545.7,0.39278]
[1726810870242,3.06,2546.0,2545.8,0.39278]
[1726810870439,3.06,2546.0,2545.7,0.39279]
[1726810871038,3.06,2545.8,2545.6,0.8177]
[1726810871533,3.6487,2546.4,2545.7,3.2078]
[1726810871534,3.06,2546.0,2545.7,3.2078]
[1726810871736,3.06,2546.2,2545.8,0.39277]
[1726810872236,3.06,2546.2,2545.7,3.60059]
[1726810872633,3.06,2546.2,2545.8,0.39278]
[1726810872826,3.06,2546.2,2546.0,3.2078]
[1726810873639,3.45272,2546.2,2546.0,3.2078]
[1726810874232,3.9272,2546.1,2545.3,3.2078]
[1726810874438,3.06,2545.7,2545.3,3.2078]
[1726810874626,3.2078,2546.1,2545.4,0.4016]
[1726810874627,3.06,2545.8,2545.4,0.4016]
[1726810874832,3.06,2546.1,2545.4,0.4016]
[1726810875031,0.39272,2546.2,2544.5,3.06]
[1726810875032,2.77010311,2545.7,2544.5,3.06]
[1726810875229,2.77010311,2545.7,2545.2,3.651]
[1726810875434,3.2078,2545.8,2545.2,3.651]
[1726810875435,3.2078,2545.8,2545.3,0.4016]
[1726810875634,3.06,2545.9,2545.3,0.4016]
[1726810875935,0.80401,2546.3,2545.5,3.2078]
[1726810875936,3.06,2546.1,2545.5,3.2078]
[1726810876434,3.06,2546.1,2545.4,3.06]
[1726810876435,3.06,2545.6,2545.3,0.79446]
[1726810876635,3.2078,2546.1,2545.3,0.4016]
[1726810876835,3.06,2545.9,2545.5,0.39282]
[1726810877037,3.06,2545.7,2545.5,3.2078]
[1726810877233,3.2078,2546.1,2545.5,3.2078]
[1726810877234,3.06,2545.9,2545.5,3.2078]
[1726810877439,3.06,2545.7,2545.3,0.79445]
[1726810877633,3.06,2545.7,2545.3,0.4016]
[1726810877834,3.06,2545.7,2545.4,3.2078]
[1726810878543,3.06,2545.7,2545.4,3.60064]
[1726810878844,3.06,2545.7,2545.4,3.2078]
[1726810879143,0.4064,2545.8,2545.4,3.60063]
[1726810879645,0.4064,2545.8,2545.5,0.39282]
[1726810879839,0.4064,2545.8,2545.6,0.4043]
[1726810880037,3.06,2545.9,2545.6,0.4043]
[1726810880342,3.06,2545.9,2545.6,0.7971]
[1726810880642,0.4066,2546.2,2545.6,0.4043]
[1726810880946,0.4066,2546.2,2545.8,3.2078]
[1726810881144,0.4066,2546.2,2545.9,0.39276]
[1726810881347,0.4066,2546.2,2545.8,0.4141]
[1726810881548,0.4066,2546.2,2545.9,0.39276]
[1726810881838,0.4066,2546.2,2545.8,0.4141]
[1726810881839,3.06,2546.1,2545.8,0.4141]
[1726810882045,3.06,2545.9,2545.4,3.2078]
[1726810882248,3.06,2545.9,2545.5,0.81831]
[1726810882541,3.06,2545.9,2545.5,0.4255]
[1726810882745,3.06,2545.9,2545.5,0.81832]
[1726810883151,3.06,2546.1,2545.6,0.3928]
[1726810883645,3.06,2546.1,2545.8,0.39277]
[1726810883947,0.4066,2546.2,2545.9,0.4255]
[1726810883948,3.06,2546.0,2545.9,0.4255]
[1726810885548,6.66056,2546.0,2545.4,0.39283]
[1726810885751,6.2678,2546.0,2545.6,0.8348]
[1726810886146,6.2678,2546.0,2545.6,0.442]
[1726810886342,3.06,2545.8,2545.6,0.442]
[1726810886838,0.4445,2545.7,2545.3,0.442]
[1726810887044,3.06,2545.6,2545.3,0.442]
[1726810887242,3.2078,2546.0,2545.3,0.442]
[1726810887443,0.98152,2547.0,2545.8,0.39277]
[1726810887444,0.4445,2546.3,2545.8,0.39277]
[1726810887642,0.8372,2546.3,2545.9,0.8561]
[1726810887949,0.8372,2546.3,2545.9,0.442]
[1726810888541,3.06,2546.0,2545.5,0.39282]
[1726810888741,3.06,2545.7,2545.6,0.39281]
[1726810888948,0.4223,2545.9,2545.5,0.80322]
[1726810889138,0.4223,2545.9,2545.6,0.39281]
[1726810889342,0.4223,2545.9,2545.5,0.80322]
[1726810889542,0.4223,2545.9,2545.5,0.4104]
[1726810889743,3.06,2545.8,2545.5,0.4104]
[1726810889939,3.06,2545.8,2545.5,0.80322]
[1726810890149,0.4223,2545.9,2545.5,0.4104]
[1726810890652,0.4223,2545.9,2545.5,0.80322]
[1726810891550,0.81506,2545.9,2545.5,0.4104]
[1726810891760,0.81507,2545.9,2545.5,0.4104]
[1726810892046,4.04203,2545.6,2544.8,3.2078]
[1726810892248,3.928,2545.8,2544.1,3.2078]
[1726810892249,3.06,2545.0,2544.1,3.2078]
[1726810892443,3.45294,2544.8,2544.2,0.4245]
[1726810892640,3.45294,2544.8,2544.2,0.81752]
[1726810892843,3.06,2544.5,2544.2,0.4245]
[1726810893047,3.06,2544.3,2544.2,0.4245]
[1726810893242,3.06,2544.3,2544.1,3.2078]
[1726810894756,3.06,2544.5,2544.1,3.2078]
[1726810894951,1.41754,2544.9,2544.4,3.2078]
[1726810894952,0.4352,2544.9,2544.4,3.2078]
[1726810895153,0.4352,2544.9,2544.5,0.79817]
[1726810895358,0.4352,2544.9,2544.5,0.83]
[1726810895555,0.4352,2544.9,2544.6,0.39296]
[1726810895943,0.4352,2544.9,2544.5,1.22297]
[1726810896654,3.45294,2544.8,2544.5,3.613]
[1726810896953,3.06,2544.8,2544.5,0.4052]
[1726810897760,3.643,2544.9,2544.5,3.613]
[1726810897950,4.03592,2544.9,2544.5,3.613]
[1726810898150,3.06,2544.8,2544.5,3.613]
[1726810898452,3.06,2544.8,2544.5,4.00598]
[1726810898647,0.4352,2544.9,2544.5,4.00598]
[1726810898850,0.4352,2544.9,2544.5,3.613]
[1726810899570,0.4352,2544.9,2544.5,4.00597]
[1726810899858,0.4352,2544.9,2544.5,3.613]
[1726810901058,3.06,2544.6,2544.1,0.39304]
[1726810901361,3.06,2544.6,2544.2,0.83802]
[1726810901951,0.39294,2544.8,2544.3,0.393]
[1726810901952,3.06,2544.8,2544.3,0.393]
[1726810902161,0.4352,2544.9,2544.5,0.39297]
[1726810902452,0.4352,2544.9,2544.6,0.445]
[1726810903365,0.82812,2544.9,2544.6,0.445]
[1726810903863,3.06,2544.8,2544.6,0.445]
[1726810904856,3.45294,2544.8,2544.6,0.445]
[1726810905051,3.06,2544.8,2544.4,0.4293]
[1726810905264,3.06,2544.8,2544.5,0.4128]
[1726810905457,3.06,2544.8,2544.5,0.80578]
[1726810905659,3.06,2544.8,2544.5,0.80577]
[1726810905967,3.06,2544.8,2544.5,0.4128]
[1726810906764,3.06,2544.6,2544.5,0.4128]
[1726810906962,3.06,2544.6,2544.3,0.4278]
[1726810907263,3.06,2544.4,2544.2,0.4388]
[1726810907458,3.06,2544.4,2543.6,3.998]
[1726810907660,0.4427,2544.5,2543.2,6.818]
[1726810907661,3.06,2543.7,2543.2,3.2078]
[1726810907860,3.06,2543.7,2543.3,1.3384]
[1726810908064,3.06,2543.9,2543.3,1.3384]
[1726810908469,3.06,2544.1,2543.5,3.2078]
[1726810908675,3.06,2544.1,2543.5,3.60093]
[1726810908962,0.4479,2544.3,2543.8,3.2078]
[1726810909165,3.06,2544.5,2544.1,0.39303]
[1726810909558,0.4219,2544.7,2544.2,0.39302]
[1726810909559,3.4819,2544.7,2544.2,0.39302]
[1726810910164,3.06,2544.5,2544.1,0.39304]
[1726810910665,3.06,2544.5,2544.0,0.39306]
[1726810910864,3.06,2544.5,2544.1,0.39304]
[1726810911264,3.06,2544.5,2544.0,0.39305]
[1726810911460,3.06,2544.5,2544.1,0.39304]
[1726810911662,3.06,2544.5,2544.2,0.39302]
[1726810911861,3.4819,2544.7,2544.3,0.393]
[1726810912068,3.4819,2544.7,2544.4,1.2639]
[1726810914670,3.4819,2544.7,2544.4,0.4071]
[1726810914671,3.06,2544.5,2544.4,0.4071]
[1726810915171,3.45298,2544.5,2544.4,0.4071]
[1726810915372,3.45298,2544.5,2544.0,0.8282]
[1726810915662,3.45298,2544.5,2544.1,0.4355]
[1726810915663,3.06,2544.2,2544.1,0.4355]
[1726810916561,3.06,2544.2,2543.7,0.39309]
[1726810916765,3.06,2544.0,2543.6,4.4839]
[1726810917063,3.06,2543.8,2543.6,3.6433]
[1726810917266,3.06,2543.8,2543.6,0.4355]
[1726810917465,3.45309,2543.8,2543.6,0.4355]
[1726810917767,3.06,2543.8,2543.6,0.4355]
[1726810918068,3.5013,2544.0,2543.6,0.4355]
[1726810918268,0.4518,2544.1,2543.7,0.439]
[1726810918464,0.4518,2544.1,2543.8,0.4308]
[1726810918666,0.4518,2544.1,2543.8,0.82389]
[1726810918868,0.4518,2544.1,2543.8,0.4308]
[1726810920175,3.06,2544.0,2543.8,0.4308]
[1726810921170,3.06,2544.0,2543.7,0.439]
[1726810921872,3.06,2544.0,2543.7,0.8321]
[1726810922068,3.06,2544.0,2543.8,0.4431]
[1726810922270,3.06,2544.0,2543.8,0.83619]
[1726810922686,3.06,2544.0,2543.8,0.4431]
[1726810922976,8.12169,2543.9,2543.3,3.2078]
[1726810923282,3.06,2543.4,2543.2,3.6199]
[1726810923570,3.06,2543.4,2543.2,0.4121]
[1726810923870,0.39313,2543.6,2543.2,0.4121]
[1726810923871,3.06,2543.3,2543.2,0.4121]
[1726810924373,3.06,2543.3,2542.4,3.2078]
[1726810924374,6.992,2543.3,2542.4,3.2078]
[1726810924572,6.992,2543.3,2542.0,3.06]
[1726810924573,3.06,2543.3,2542.8,3.2078]
[1726810924778,3.06,2543.0,2542.9,3.2078]
[1726810925076,3.06,2543.2,2542.9,3.60102]
[1726810925261,0.4409,2543.4,2542.6,4.4867]
[1726810925262,3.06,2543.0,2542.6,4.4867]
[1726810925466,3.06,2543.0,2542.6,4.87997]
[1726810925768,3.06,2543.0,2542.6,4.4867]
[1726810926067,3.2078,2542.8,2541.9,3.2078]
[1726810926272,4.6672,2542.9,2541.9,4.07]
[1726810926474,4.2271,2542.9,2542.3,3.60111]
[1726810926673,6.9878,2543.5,2542.4,0.8509]
[1726810926873,0.4471,2543.4,2543.1,0.39319]
[1726810927174,0.4471,2543.4,2543.2,0.4259]
[1726810927375,0.4471,2543.4,2543.2,0.81908]
[1726810927571,0.4471,2543.4,2543.2,0.4259]
[1726810928172,0.4471,2543.4,2543.2,0.81908]
[1726810928368,3.2078,2543.5,2543.3,3.932]
[1726810928570,0.39306,2544.0,2543.4,0.39314]
[1726810928773,0.39306,2544.0,2543.3,4.7865]
[1726810928774,0.39306,2544.0,2543.3,1.24766]
[1726810928974,0.39308,2543.9,2543.3,1.24766]
[1726810929370,7.4295,2544.1,2543.4,0.39315]
[1726810929680,0.39306,2544.0,2543.4,0.39315]
[1726810929978,7.4295,2544.1,2543.3,1.24765]
[1726810929979,0.39308,2543.9,2543.3,1.24765]
[1726810930471,0.39307,2544.0,2543.4,0.39315]
[1726810930668,0.39306,2544.0,2543.4,0.39314]
[1726810930868,0.39307,2544.0,2543.4,0.39315]
[1726810931274,0.39307,2544.0,2543.3,0.8545]
[1726810931275,0.4417,2544.1,2543.3,4.0623]
[1726810931478,0.2183,2544.6,2544.1,0.39304]
[1726810931681,4.17296,2544.7,2544.2,0.4343]
[1726810931872,4.17295,2544.7,2544.2,0.4343]
[1726810932071,3.78,2544.7,2544.2,0.82732]
[1726810932273,4.17295,2544.7,2544.2,0.4343]
[1726810932473,4.17296,2544.7,2544.2,0.4343]
[1726810933176,0.39297,2544.6,2544.2,0.4343]
[1726810934178,0.8771,2544.8,2544.3,3.6008]
[1726810934381,1.27005,2544.8,2544.3,3.6434]
[1726810934681,5.05005,2544.8,2544.3,3.6434]
[1726810935073,3.78,2544.5,2544.3,3.2078]
[1726810935272,3.78,2544.5,2543.9,3.2078]
[1726810935468,0.39306,2544.0,2543.9,3.2078]
[1726810935681,0.39306,2544.0,2543.3,1.69656]
[1726810935682,0.39308,2543.9,2543.3,1.3034]
[1726810935978,5.05598,2543.9,2543.3,1.69655]
[1726810936584,5.05598,2543.9,2543.3,1.3034]
[1726810936781,0.3931,2543.8,2543.3,0.4218]
[1726810936976,5.05598,2543.9,2543.3,1.26096]
[1726810937288,4.6629,2543.9,2543.3,0.4218]
[1726810937485,3.78,2543.6,2543.2,3.2078]
[1726810938086,3.78,2543.6,2543.2,3.60097]
[1726810938273,3.78,2543.6,2543.2,3.2078]
[1726810938473,3.78,2543.6,2543.0,0.8897]
[1726810938474,0.39314,2543.5,2543.0,0.8897]
[1726810939079,0.39313,2543.5,2543.0,0.8897]
[1726810939275,3.78,2543.3,2542.7,0.4148]
[1726810939483,0.39318,2543.2,2542.7,1.25175]
[1726810939686,4.17317,2543.3,2542.7,1.25175]
[1726810939884,0.39318,2543.2,2542.7,1.25175]
[1726810940184,0.4333,2543.2,2542.7,1.25175]
[1726810940386,0.4333,2543.2,2542.7,0.83696]
[1726810940687,0.4333,2543.2,2542.7,0.4437]
[1726810940983,0.4333,2543.2,2542.7,0.39325]
[1726810941187,0.3932,2543.1,2542.3,7.2058]
[1726810941387,3.2078,2542.9,2542.2,0.4145]
[1726810941579,0.39327,2542.7,2542.2,0.4145]
[1726810941977,3.2078,2542.9,2542.2,0.4145]
[1726810942175,4.2028,2543.3,2542.3,3.2078]
[1726810942380,0.39321,2543.1,2542.3,3.2078]
[1726810942582,4.2028,2543.3,2542.3,3.2078]
[1726810942789,0.82649,2543.2,2542.3,3.2078]
[1726810942992,0.82649,2543.2,2542.6,0.39327]
[1726810943183,0.4333,2543.2,2542.3,3.2078]
[1726810943386,0.82649,2543.2,2542.6,3.2078]
[1726810943589,0.82649,2543.2,2542.6,0.39327]
[1726810943789,0.4333,2543.2,2542.6,0.80647]
[1726810944086,0.4333,2543.2,2542.8,3.60104]
[1726810944286,0.4333,2543.2,2542.7,0.81135]
[1726810944678,0.4333,2543.2,2542.8,0.4276]
[1726810946488,4.2133,2543.2,2542.8,0.4276]
[1726810947188,0.4333,2543.2,2542.8,0.82083]
[1726810949492,0.4333,2543.2,2542.8,0.4276]
[1726810949694,0.82649,2543.2,2542.8,0.4276]
[1726810949885,3.07,2542.9,2542.8,0.4276]
[1726810950289,3.07,2542.9,2542.7,3.2078]
[1726810950996,3.46323,2542.9,2542.7,3.2078]
[1726810951187,3.07,2542.9,2542.7,3.2078]
[1726810951388,3.07,2542.9,2542.2,3.998]
[1726810951389,6.2778,2542.9,2542.3,3.2078]
[1726810951593,3.07,2542.7,2542.3,3.60111]
[1726810951991,3.07,2542.7,2542.3,3.2078]
[1726810952192,3.07,2542.7,2542.3,3.60111]
[1726810952497,3.07,2542.7,2542.4,0.3933]
[1726810953889,3.07,2542.7,2542.3,3.2078]
[1726810954095,0.4333,2543.2,2542.6,3.2078]
[1726810954293,3.5033,2543.2,2542.9,0.39323]
[1726810954697,3.5033,2543.2,2542.9,0.39321]
[1726810954891,3.5033,2543.2,2542.9,0.39322]
[1726810955088,3.5033,2543.2,2542.7,1.2567]
[1726810955294,3.5033,2543.2,2542.9,0.39322]
[1726810955493,3.5033,2543.2,2542.7,0.8377]
[1726810955494,3.07,2543.0,2542.7,0.8377]
[1726810955896,3.07,2543.0,2542.9,0.39323]
[1726810956585,3.07,2543.0,2542.7,0.8377]
[1726810956785,0.4333,2543.2,2542.8,3.2078]
[1726810956786,3.5033,2543.2,2542.8,3.2078]
[1726810957087,7.93983,2543.6,2543.1,0.39319]
[1726810957088,3.07,2543.4,2543.1,0.39319]
[1726810957287,3.07,2543.4,2543.2,0.39317]
[1726810957692,3.07,2543.4,2543.3,0.39317]
[1726810957901,3.07,2543.4,2543.2,0.39317]
[1726810958294,3.07,2543.4,2543.2,1.27327]
[1726810958704,3.07,2543.4,2542.9,0.39323]
[1726810958999,3.07,2543.1,2542.8,3.2078]
[1726810959488,3.4632,2543.1,2542.8,3.2078]
[1726810959802,3.07,2543.1,2542.9,0.39322]
[1726810960101,0.39317,2543.3,2542.8,3.2078]
[1726810960102,3.07,2543.3,2542.8,3.2078]
[1726810960404,3.07,2543.3,2543.1,0.39319]
[1726810960593,3.07,2543.3,2543.0,0.3932]
[1726810960793,3.07,2543.3,2542.8,3.2078]
[1726810960995,3.07,2543.3,2542.9,0.39321]
[1726810961196,3.07,2543.3,2543.0,0.3932]
[1726810961594,3.07,2543.1,2542.8,3.2078]
[1726810961798,3.07,2543.1,2543.0,0.39321]
[1726810962293,3.07,2543.4,2543.1,0.39318]
[1726810962499,3.07,2543.4,2543.1,0.39319]
[1726810963707,3.07,2543.4,2542.8,3.2078]
[1726810963897,3.07,2543.4,2543.2,0.39318]
[1726810964202,3.46316,2543.4,2542.9,0.39323]
[1726810964503,3.07,2543.4,2542.8,3.2078]
[1726810964694,3.07,2543.4,2543.3,0.39317]
[1726810965401,3.07,2543.4,2543.2,0.81237]
[1726810965609,3.07,2543.4,2543.2,0.39317]
[1726810965898,3.07,2543.4,2542.9,0.4336]
[1726810966100,3.46315,2543.4,2543.0,0.3932]
[1726810966501,3.46315,2543.4,2543.1,0.39319]
[1726810966802,3.07,2543.4,2542.9,0.4336]
[1726810966996,3.07,2543.4,2543.2,0.39317]
[1726810967397,0.4583,2543.5,2542.9,0.4336]
[1726810967603,0.4583,2543.5,2543.4,0.39315]
[1726810967903,0.4583,2543.5,2543.3,0.39315]
[1726810968104,0.4583,2543.5,2543.1,3.2078]
[1726810968298,0.4583,2543.5,2543.3,0.39316]
[1726810969307,0.4583,2543.5,2543.4,0.39315]
[1726810969702,4.3903,2543.5,2543.1,0.39318]
[1726810969899,4.3903,2543.5,2542.6,7.2058]
[1726810969900,6.2778,2543.3,2542.6,7.2058]
[1726810970101,3.07,2543.0,2542.8,0.39324]
[1726810970310,0.4387,2542.9,2542.8,0.39324]
[1726810970703,4.3715,2542.9,2542.4,0.4353]
[1726810971003,3.5087,2542.9,2542.4,0.4353]
[1726810971208,3.5087,2542.9,2542.6,0.39327]
[1726810971506,3.5087,2542.9,2542.4,3.6431]
[1726810971707,3.07,2543.1,2542.4,4.62634]
[1726810971908,0.82669,2543.2,2542.9,0.39322]
[1726810972102,0.4335,2543.2,2542.9,0.39322]
[1726810972299,7.002,2543.1,2542.8,0.39323]
[1726810972499,3.07,2543.1,2542.7,0.39325]
[1726810972704,3.46321,2543.1,2542.4,3.6431]
[1726810972912,3.07,2543.1,2542.7,3.2078]
[1726810973409,3.07,2543.1,2542.9,0.39322]
[1726810973796,3.07,2543.1,2542.8,0.39324]
[1726810973999,3.07,2543.1,2542.7,3.2078]
[1726810974197,3.07,2542.9,2542.7,3.2078]
[1726810974608,0.4252,2542.8,2542.7,3.2078]
[1726810975806,4.358,2542.8,2542.7,3.2078]
[1726810976009,0.4252,2542.8,2542.7,3.60106]
[1726810976911,0.4252,2542.8,2542.4,3.6431]
[1726810977097,0.4252,2542.8,2542.7,0.39326]
[1726810977304,0.4252,2542.8,2542.6,0.39327]
[1726810977511,0.4252,2542.8,2542.5,0.39328]
[1726810978207,0.4252,2542.8,2542.7,0.39326]
[1726810979505,0.4252,2542.8,2542.7,3.60106]
[1726810980320,0.4252,2542.8,2542.7,0.39326]
[1726810980505,0.4252,2542.8,2542.7,3.60106]
[1726810981412,0.4252,2542.8,2542.6,0.39326]
[1726810981618,0.4252,2542.8,2542.4,3.6431]
[1726810981619,0.4252,2542.8,2542.5,0.39328]
[1726810981804,0.4252,2542.8,2542.6,0.39327]
[1726810982510,0.4252,2542.8,2542.7,0.39326]
[1726810983709,3.07,2543.2,2543.0,0.3932]
[1726810983916,4.3775,2543.1,2543.0,0.3932]
[1726810984118,0.4455,2543.1,2543.0,3.601]
[1726810984424,3.07,2543.9,2543.5,0.39313]
[1726810984713,3.5155,2543.7,2543.1,0.4568]
[1726810984912,0.39313,2543.6,2543.3,0.39316]
[1726810985214,3.90861,2543.7,2543.3,0.39316]
[1726810985814,0.4455,2543.7,2543.1,0.4568]
[1726810986014,0.4455,2543.7,2543.6,0.39312]
[1726810986215,0.2381,2544.2,2543.6,0.39312]
[1726810986216,3.07,2544.3,2543.6,3.2078]
[1726810986512,3.5112,2544.1,2543.7,1.24039]
[1726810986716,3.5112,2544.1,2543.8,0.39308]
[1726810986917,3.5112,2544.1,2543.9,0.39307]
[1726810987118,3.5112,2544.1,2543.7,0.8473]
[1726810987414,3.5112,2544.1,2543.7,1.2404]
[1726810987604,3.5112,2544.1,2543.7,0.8473]
[1726810987804,0.4412,2544.1,2543.7,0.8473]
[1726810988015,0.4412,2544.1,2543.9,0.39307]
[1726810988209,3.2078,2544.4,2543.7,3.9173]
[1726810988405,0.4539,2544.5,2543.9,6.2778]
[1726810988812,3.5239,2544.5,2543.9,3.2078]
[1726810989320,3.5239,2544.5,2544.2,3.60082]
[1726810989710,3.5239,2544.5,2544.2,0.39302]
[1726810990106,3.5239,2544.5,2544.3,0.393]
[1726810990617,3.07,2544.4,2544.1,3.2078]
[1726810990820,3.07,2544.4,2544.0,0.39305]
[1726810991116,3.07,2544.4,2544.1,0.39304]
[1726810991419,3.07,2544.4,2543.8,3.6399]
[1726810991420,3.463,2544.4,2543.9,0.39307]
[1726810991615,3.463,2544.4,2543.8,3.6399]
[1726810991911,3.463,2544.4,2543.9,0.39306]
[1726810992313,0.4539,2544.5,2543.8,3.6399]
[1726810992314,3.07,2544.1,2543.8,3.2078]
[1726810992519,0.4134,2544.0,2543.8,3.2078]
[1726810992706,3.07,2543.9,2543.8,3.2078]
[1726810992910,3.46307,2543.9,2543.8,3.2078]
[1726810993110,3.46307,2543.9,2543.4,0.4437]
[1726810993111,0.3931,2543.8,2543.4,0.4437]
[1726810993414,3.07,2543.7,2543.5,0.39313]
[1726810993615,3.07,2543.8,2543.4,0.4437]
[1726810993924,3.07,2543.8,2543.6,0.39311]
[1726810994224,0.4134,2544.0,2543.4,0.4437]
[1726810994421,0.4134,2544.0,2543.7,0.3931]
[1726810994613,0.4134,2544.0,2543.6,3.2078]
[1726810994916,0.4134,2544.0,2543.8,0.39308]
[1726810997419,3.4842,2544.4,2543.9,3.2078]
[1726810997723,3.4842,2544.4,2544.0,0.4548]
[1726810997724,3.4853,2544.4,2544.0,0.4548]
[1726810998019,3.4853,2544.4,2544.1,0.39304]
[1726811000429,0.20138571,2546.3,2544.3,3.07]
[1726811000614,3.07,2545.5,2544.9,3.2078]
[1726811000814,3.07,2545.3,2544.9,3.2078]
[1726811001021,3.07,2545.5,2545.1,0.39288]
[1726811001217,3.07,2545.3,2544.9,3.2078]
[1726811001723,3.07,2545.5,2545.1,0.39287]
[1726811001921,0.4137,2545.6,2545.2,0.39287]
[1726811002221,0.4137,2545.6,2545.3,0.39285]
[1726811002522,0.4137,2545.6,2545.4,0.39284]
[1726811002724,0.4137,2545.6,2545.3,0.39285]
[1726811003021,0.4137,2545.6,2545.3,3.60065]
[1726811003214,0.4137,2545.6,2545.3,0.39285]
[1726811004317,3.2078,2546.0,2545.0,3.2078]
[1726811004511,3.2078,2546.4,2545.7,3.2078]
[1726811004721,3.2078,2546.4,2545.7,3.60059]
[1726811004925,4.16271,2546.3,2545.6,0.3928]
[1726811005522,3.77,2546.0,2545.4,3.2078]
[1726811005823,0.4132,2545.9,2545.3,3.6494]
[1726811006018,0.80597,2545.9,2545.3,3.6494]
[1726811006218,0.80597,2545.9,2545.3,4.04225]
[1726811006418,0.4132,2545.9,2545.4,0.39284]
[1726811007618,0.80597,2545.9,2545.4,0.39284]
[1726811007819,0.4132,2545.9,2545.5,0.39282]
[1726811010325,0.80597,2545.9,2545.5,0.39282]
[1726811011330,0.80597,2545.9,2545.6,0.39281]
[1726811011523,4.73397,2545.9,2545.5,0.39282]
[1726811011726,0.80597,2545.9,2545.5,0.39282]
[1726811012419,3.2078,2545.7,2545.1,0.39288]
[1726811012622,0.39286,2545.3,2544.6,7.2058]
[1726811012834,3.2078,2545.1,2544.6,3.2078]
[1726811013026,1.1231,2545.2,2544.6,3.2078]
[1726811013027,0.6758,2545.2,2544.7,0.4236]
[1726811014033,0.4386,2545.2,2544.7,0.4236]
[1726811014427,0.4386,2545.2,2545.0,0.3929]
[1726811014625,0.4386,2545.2,2544.7,0.4236]
[1726811015232,0.4386,2545.2,2544.9,0.39291]
[1726811016228,0.4386,2545.2,2544.7,0.4236]
[1726811016426,0.4386,2545.2,2544.6,3.2078]
[1726811016427,0.39295,2544.8,2544.2,3.2078]
[1726811016639,0.39298,2544.6,2544.2,3.2078]
[1726811016936,0.4314,2544.5,2544.2,3.60081]
[1726811017237,0.4314,2544.5,2544.4,0.393]
[1726811017633,0.4314,2544.5,2544.2,3.2078]
[1726811017836,0.82439,2544.5,2544.2,3.2078]
[1726811018146,0.4314,2544.5,2544.2,3.2078]
[1726811018339,0.82439,2544.5,2544.2,3.2078]
[1726811019639,0.4314,2544.5,2544.2,3.2078]
[1726811020135,0.4314,2544.5,2544.3,0.393]
[1726811020342,0.7096,2544.9,2544.2,3.2078]
[1726811020638,0.84365,2544.8,2544.4,0.39299]
[1726811020941,0.4507,2544.8,2544.5,0.39298]
[1726811021237,0.4507,2544.8,2544.5,0.39297]
[1726811021740,0.84364,2544.8,2544.2,3.2078]
[1726811021934,0.84364,2544.8,2544.2,6.2778]
[1726811022138,0.84364,2544.8,2544.3,0.39301]
[1726811022435,0.84364,2544.8,2544.4,0.39299]
[1726811024035,0.39295,2544.7,2544.3,0.393]
[1726811024338,0.39298,2544.6,2544.2,3.2078]
[1726811024538,0.39298,2544.6,2544.2,3.60082]
[1726811025338,0.4507,2544.8,2544.2,6.2778]
[1726811025539,0.4507,2544.8,2544.4,0.39299]
[1726811025540,0.84364,2544.8,2544.4,0.39299]
[1726811025949,0.4507,2544.8,2544.5,0.39298]
[1726811026244,4.18998,2545.3,2544.6,6.2778]
[1726811026438,0.4313,2545.2,2544.6,3.60076]
[1726811026638,0.39292,2544.9,2544.6,3.2078]
[1726811026946,0.4313,2545.2,2544.7,0.425]
[1726811026947,0.39293,2544.8,2544.7,0.425]
[1726811027942,0.39292,2544.9,2544.7,0.425]
[1726811028341,6.2778,2545.0,2544.7,0.425]
[1726811028538,0.39293,2544.9,2544.7,0.425]
[1726811029644,4.32254,2544.8,2544.5,0.39297]
[1726811029846,0.39294,2544.8,2544.5,0.39297]
[1726811030445,0.39293,2544.9,2544.6,0.39296]
[1726811031045,3.2078,2544.9,2544.4,3.4926]
[1726811031345,0.39291,2545.0,2544.7,0.39295]
[1726811032545,0.3929,2545.1,2544.7,0.39295]
[1726811032741,0.39289,2545.1,2544.4,3.4926]
[1726811033045,0.39289,2545.1,2544.7,0.39294]
[1726811033443,0.3929,2545.0,2544.7,0.39294]
[1726811034142,0.3929,2545.1,2544.7,0.39294]
[1726811034345,0.3929,2545.1,2544.4,3.4926]
[1726811034647,0.3929,2545.0,2544.7,0.39294]
[1726811036446,1.41349,2545.2,2544.6,0.39296]